Cogmind - Beta 16 @@@ ROGUE MODE // 2026.01.02 @ 22:02:41 Player: LYMPH NODE JONES Result: Destroyed by G-47 Trooper with Particle Gun Performance ------------- Evolutions (2) 1000 Regions Visited (6) 1200 Robots Destroyed (53) 265 Value Destroyed (1571) 1571 Prototype IDs (1) 20 Alien Tech Used (0) 0 Bonus (887) 887 TOTAL SCORE: 4943 Bonus ------- High Alert Combat Kills 110 Follower Combat Kills 77 Entered Garrisons 200 Used RIF Installer 500 Cogmind --------- Core Integrity 0/550 Matter 243/300 Energy 300/300 System Corruption 0% Temperature Cool (9) Movement Core (200) Ox3 Location -8/Materials Parts ------- > --- POWER (1) -------- (None) > --- PROPULSION (4) --- (None) > --- UTILITY (3) ------ Medium Storage Unit Compact Battery > --- WEAPON (3) ------- (None) > --- INVENTORY (10) --- Light Ion Engine Aluminum Leg Aluminum Leg Rocket Launcher Mini Grenade Launcher Peak State ------------ > --- POWER ------------ Cooled Ion Engine > --- PROPULSION ------- Aluminum Leg Aluminum Leg Aluminum Leg Aluminum Leg > --- UTILITY ---------- Medium Storage Unit Compact Battery Hardened Medium Armor Plating > --- WEAPON ----------- Particle Gun Light EM Pulse Cannon Particle Cannon > --- INVENTORY -------- Light Ion Engine Aluminum Leg Aluminum Leg Rocket Launcher Mini Grenade Launcher [Rating: 20] Favorites ----------- Power Ion Engine Engine Ion Engine Power Core Light Nuclear Core Propulsion Aluminum Leg Leg Aluminum Leg Utility Small Storage Unit Device Heat Sink Storage Small Storage Unit Processor Visual Processing Unit Protection Light Armor Plating Weapon Small Laser Energy Gun Small Laser Energy Cannon Particle Cannon Ballistic Gun Heavy Assault Rifle Ballistic Cannon Improved Light Cannon Launcher Mini Grenade Launcher Build | -11 -10 -10 -9 -8 -8 -8 ------- Run | Yrd Mat Min Mat Mat Gar Mat Slots Evolved 4 | . . . 2 2 . . Power . | . . . . . . . Propulsion 2 | . . . . 2 . . Utility 1 | . . . 1 . . . Weapon 1 | . . . 1 . . . Parts Attached 41 | 6 6 2 19 2 1 5 Power 3 | 1 1 . 1 . . . Engine 2 | 1 . . 1 . . . Core 1 | . 1 . . . . . Reactor . | . . . . . . . Propulsion 10 | 2 1 1 3 2 1 . Treads . | . . . . . . . Leg 10 | 2 1 1 3 2 1 . Wheel . | . . . . . . . Hover . | . . . . . . . Flight . | . . . . . . . Utility 10 | 1 2 . 5 . . 2 Device 2 | . 1 . 1 . . . Storage 4 | 1 . . 2 . . 1 Processor 2 | . . . 2 . . . Hackware . | . . . . . . . Protection 2 | . 1 . . . . 1 Artifact . | . . . . . . . Weapon 18 | 2 2 1 10 . . 3 Energy Gun 8 | 2 1 1 3 . . 1 Energy Cannon 2 | . . . . . . 2 Ballistic Gun 4 | . . . 4 . . . Ballistic Cannon 1 | . . . 1 . . . Launcher 3 | . 1 . 2 . . . Special Weapon . | . . . . . . . Impact Weapon . | . . . . . . . Slashing Weapon . | . . . . . . . Piercing Weapon . | . . . . . . . Special Melee Weapon . | . . . . . . . Unidentified Prototypes 1 | . . . 1 . . . Parts Lost 14 | . . 1 3 . 1 9 Power 1 | . . . . . . 1 Propulsion 4 | . . . . . . 4 Utility 1 | . . . . . . 1 Weapon 8 | . . 1 3 . 1 3 Highest Loss Streak 8 | . . 1 3 . 1 8 To Critical Strikes . | . . . . . . . Average Backups 6 | 1 6 7 6 5 4 5 Power 1 | . 1 1 1 1 1 1 Propulsion 2 | . . 2 3 2 2 2 Utility . | . 1 1 . . . . Weapon 2 | . 2 2 1 2 1 2 Tool/Special . | . . . . . . . Unused Backups 3 | . 1 . . . . 2 Power 1 | . . . . . . 1 Propulsion 1 | . . . . . . 1 Utility 1 | . 1 . . . . . Weapon . | . . . . . . . Tool/Special . | . . . . . . . Average Slot Usage (%) 95 | . 97 99 96 97 98 79 Engine 8 | . 7 2 11 9 9 7 Core 2 | . 6 11 . . . . Leg 25 | . 28 28 21 33 36 28 Device 12 | . 5 14 18 . . . Storage 12 | . 14 14 11 9 9 16 Processor 3 | . . . 2 18 18 4 Protection 1 | . 6 . . . . 4 Energy Gun 20 | . 27 27 20 9 9 8 Ballistic Gun 2 | . . . 4 9 6 . Ballistic Cannon 1 | . . . . 9 9 2 Launcher 2 | . . . 4 . 1 . Peak Build Rating 20 | 6 9 9 16 17 17 20 Average Rating 11 | 4 7 8 11 16 16 15 On Entrance 9 | . 6 9 7 15 17 15 Avg Prop Armor Cover (%) . | . . . . . . . Naked Turns . | . . . . . . . Heaviest Build 38 | 13 17 14 28 28 28 38 Greatest Support 40 | 20 20 20 26 40 40 40 Greatest Overweight (x) 2 | 1 . . 2 . . . Average Overweight (x) . | . . . . . . . Largest Inventory Capacity 10 | 8 8 8 10 10 10 10 Average Capacity 8 | 6 8 8 8 10 10 10 Most Carried 10 | 3 8 8 10 6 5 5 Average Carried 6 | 1 6 7 6 5 4 5 Final Capacity 10 | 8 8 8 10 10 10 10 Final Carried 8 | 2 7 8 7 5 5 5 Class Distribution -------------------- 41% | Mutant 28% | Gunner 10% | Scavenger-Skirmisher 9% | Scavenger-Mutant 4% | Scavenger-Gunner Dominant Class ---------------- Mutant | -10/Materials Mutant | -10/Mines Gunner | -9/Materials Scavenger-Skirmisher | -8/Materials Scavenger-Skirmisher | -8/Garrison Scavenger-Mutant | -8/Materials Resources | -11 -10 -10 -9 -8 -8 -8 ----------- Run | Yrd Mat Min Mat Mat Gar Mat Matter Collected 1306 | 207 295 73 546 . 185 . Remotely . | . . . . . . . Salvage Created 1572 | . 295 88 850 . 192 147 Parts 88 | . 18 4 48 . 10 8 Haulers Intercepted 2 | . . . 2 . . . Recyclers Shooed 2 | . . . 2 . . . Parts Field Recycled . | . . . . . . . Retrieved Matter . | . . . . . . . Parts Self-Destructed . | . . . . . . . Prevented . | . . . . . . . Parts Restored . | . . . . . . . Kills | -11 -10 -10 -9 -8 -8 -8 ------- Run | Yrd Mat Min Mat Mat Gar Mat Combat Hostiles Destroyed 38 | . 6 2 19 . 8 3 Guns 17 | . 6 2 6 . 2 1 Cannons 9 | . . . 1 . 6 2 AOE 12 | . . . 12 . . . Classes Destroyed 10 | . 5 . 5 . . . Worker 4 | . . . 4 . . . Tunneler 1 | . . . 1 . . . Hauler 2 | . . . 2 . . . Recycler 3 | . 1 . 2 . . . Operator 1 | . 1 . . . . . Watcher 4 | . 1 . 3 . . . Swarmer 7 | . 3 . . . 4 . Grunt 24 | . 3 2 13 . 4 2 Duelist 2 | . . . 1 . . 1 Sentry 5 | . . . 5 . . . Best Kill Streak 16 | . 3 2 16 . 6 3 Combat Bots Only 7 | . 3 2 7 . 6 3 Max Kills in Single Turn 4 | . 1 1 4 . 1 1 Gunslinging . | . . . . . . . Exploded 2 | . . . 2 . . . Melee . | . . . . . . . Uniques/NPCs Destroyed . | . . . . . . . Combat | -11 -10 -10 -9 -8 -8 -8 -------- Run | Yrd Mat Min Mat Mat Gar Mat Hostile Shots Fired 211 | . 18 12 55 . 62 64 Missed 47 | . 8 3 14 . 17 5 Hits 164 | . 10 9 41 . 45 59 Melee 10 | . . . 7 . . 3 Projectile 154 | . 10 9 34 . 45 56 Critical Strikes 6 | . . . 2 . 2 2 Damage Taken 2814 | . 109 118 731 . 601 1255 Core 732 | . 6 20 144 . 96 466 Absorbed by Shields . | . . . . . . . Core Remaining (%) 84 | 100 . 89 64 . . . Volleys Fired 110 | . 26 7 43 . 22 12 Largest 3 | . 2 2 3 . 3 3 Hottest 189 | . 80 80 145 . 128 189 Shots Fired 245 | . 52 12 98 . 57 26 Gun 173 | . 50 12 68 . 34 9 Cannon 43 | . . . 4 . 22 17 Launcher 29 | . 2 . 26 . 1 . Special . | . . . . . . . Kinetic 73 | . . . 37 . 36 . Thermal 102 | . 33 7 21 . 20 21 Explosive 29 | . 2 . 26 . 1 . Electromagnetic 41 | . 17 5 14 . . 5 Robot Hit Streak 18 | . 6 5 6 . 18 6 Robot Miss Streak 5 | . 2 2 5 . 2 3 Penetration Max . | . . . . . . . Secondary Targets . | . . . . . . . Shots Hit Robots 128 | . 24 8 42 . 39 15 Core Hits 87 | . 14 4 48 . 14 7 Critical Kills . | . . . . . . . Critical Parts Destroyed 1 | . . . 1 . . . Critical Strikes 6 | . 1 . 2 . 3 . Destroy 1 | . . . 1 . . . Blast 3 | . . . . . 3 . Corrupt 2 | . 1 . 1 . . . Melee Attacks . | . . . . . . . Impact . | . . . . . . . Slashing . | . . . . . . . Piercing . | . . . . . . . Sneak Attacks . | . . . . . . . Combat Hostiles . | . . . . . . . Follow-up Attacks . | . . . . . . . Damage Inflicted 3652 | . 292 94 2159 . 791 316 Guns 1313 | . 292 94 441 . 386 100 Cannons 666 | . . . 67 . 383 216 Explosions 1666 | . . . 1644 . 22 . Melee . | . . . . . . . Ramming 7 | . . . 7 . . . Kinetic 896 | . . . 358 . 538 . Thermal 714 | . 140 54 65 . 231 224 Explosive 1666 | . . . 1644 . 22 . Electromagnetic 369 | . 152 40 85 . . 92 Impact . | . . . . . . . Slashing . | . . . . . . . Piercing . | . . . . . . . Highest Corruption . | . . . . . . . Average Corruption . | . . . . . . . Corruption Purged . | . . . . . . . Corruption Blocked . | . . . . . . . Overload Shots . | . . . . . . . Overflow Damage 95 | . . . 82 . 13 . Projectiles 13 | . . . . . 13 . Explosions 82 | . . . 82 . . . Melee . | . . . . . . . Knockbacks 6 | . . . 1 . 5 . Impact . | . . . . . . . Kinetic 5 | . . . 1 . 4 . Secondary 1 | . . . . . 1 . Self-Inflicted Damage 72 | . . . 72 . . . Shots 3 | . . . 3 . . . Rammed . | . . . . . . . Targets Rammed 5 | . . . 5 . . . Kicked 5 | . . . 5 . . . Crushed . | . . . . . . . Highest Temperature 776 | . 135 12 87 . 399 776 Average Temperature 154 | . 44 4 22 . 174 387 Received Heat Transfer 1134 | . 45 69 192 . 288 540 Effects 23 | . . . . . 1 22 Shutdowns 3 | . . . . . . 3 Energy Bleed 4 | . . . . . . 4 Interference 5 | . . . . . . 5 Matter Decay 1 | . . . . . . 1 Short Circuit 1 | . . . . . 1 . Damage (minor) 1 | . . . . . . 1 Damage (major) 5 | . . . . . . 5 Damage (core) 3 | . . . . . . 3 Siege Activations . | . . . . . . . Martial Activations . | . . . . . . . Shielding Activations . | . . . . . . . Robots Disrupted . | . . . . . . . Combat Hostiles . | . . . . . . . Robots Corrupted . | . . . . . . . Combat Hostiles . | . . . . . . . Parts Fried . | . . . . . . . Impact Corruptions . | . . . . . . . Robots Melted . | . . . . . . . Combat Hostiles . | . . . . . . . Parts Melted 2 | . . . . . 1 1 Heat Transferred 1584 | . 325 125 135 . 555 444 Parts Sabotaged . | . . . . . . . Parts Stolen . | . . . . . . . Parts Stripped . | . . . . . . . Power Chain Reactions . | . . . . . . . Alert | -11 -10 -10 -9 -8 -8 -8 ------- Run | Yrd Mat Min Mat Mat Gar Mat Maximum Alert Level 3 | . . . 3 1 1 1 Low Security (%) 72 | 100 100 100 54 . 50 91 Level 1 9 | . . . 6 100 49 8 Level 2 15 | . . . 31 . . . Level 3 3 | . . . 6 . . . Level 4 . | . . . . . . . Level 5 . | . . . . . . . High Security . | . . . . . . . Max Security . | . . . . . . . Peak Influence 721 | . 79 50 721 299 389 219 Initial 299 | . . . . 299 187 189 Average 173 | . 32 5 265 296 265 159 Influence Increases 1602 | . 205 50 1005 . 212 130 Destroy 0b10 Robot/C 820 | . 120 40 440 . 160 60 Destroy 0b10 Robot/NC 80 | . 15 . 65 . . . Destroy Leader 204 | . 32 10 132 . 20 10 Allied During Kill 19 | . . . 19 . . . Successful Hack 36 | . 4 . 32 . . . Disable Machine 180 | . 15 . 120 . . 45 Destroy Structure 188 | . 19 . 167 . 2 . Lose Combat Pursuer 75 | . . . 30 . 30 15 Influence Decreases 1503 | . 205 50 296 420 112 420 Entered New Map 712 | . . . . 410 102 200 Time Decay 601 | . 205 50 206 10 . 130 Lost Part 130 | . . . 30 . 10 90 Lost Ally 60 | . . . 60 . . . Squads Dispatched 8 | . 1 . 6 . . 1 Investigation 4 | . . . 3 . . 1 Extermination . | . . . . . . . Reinforcement 3 | . 1 . 2 . . . Assault 1 | . . . 1 . . . Garrison . | . . . . . . . Intercept . | . . . . . . . Searches Triggered . | . . . . . . . Construction Impeded 1 | . . . 1 . . . Haulers Reinforced . | . . . . . . . Active Scanning Responses . | . . . . . . . Cargo Convoy Interrupts . | . . . . . . . Stealth | -11 -10 -10 -9 -8 -8 -8 --------- Run | Yrd Mat Min Mat Mat Gar Mat Distress Signals 3 | . . . 3 . . . Communications Jammed . | . . . . . . . Distress Signals . | . . . . . . . Times Spotted 58 | . 11 3 30 . 9 5 Peak Tracking Total 6 | . 3 2 6 . 6 4 Tactical Retreats 6 | . . 1 2 . 2 1 Traps | -11 -10 -10 -9 -8 -8 -8 ------- Run | Yrd Mat Min Mat Mat Gar Mat Traps Triggered 2 | . . . 1 . 1 . Indirectly . | . . . . . . . Trap Hack Attempts . | . . . . . . . Triggered . | . . . . . . . Disarmed . | . . . . . . . Reprogrammed . | . . . . . . . Reused . | . . . . . . . Traps Extracted . | . . . . . . . Installed . | . . . . . . . Triggered . | . . . . . . . Machines | -11 -10 -10 -9 -8 -8 -8 ---------- Run | Yrd Mat Min Mat Mat Gar Mat Machines Disabled 12 | . 1 . 8 . . 3 Max in Single Turn 2 | . 1 . 2 . . 1 Machines Repaired . | . . . . . . . Machines Dismantled . | . . . . . . . Machines Sabotaged . | . . . . . . . Overloaded Fab Kills . | . . . . . . . Hacking | -11 -10 -10 -9 -8 -8 -8 --------- Run | Yrd Mat Min Mat Mat Gar Mat Machines Accessed 9 | . 2 . 5 1 . 1 Terminals 7 | . 2 . 4 . . 1 Fabricators . | . . . . . . . Repair Stations . | . . . . . . . Recycling Units . | . . . . . . . Scanalyzers 1 | . . . 1 . . . Garrison Access 1 | . . . . 1 . . Total Hacks 26 | . 3 . 19 1 . 3 Successful 13 | . 2 . 10 1 . . Failed 12 | . 1 . 8 . . 3 Catastrophic 1 | . . . 1 . . . Database Lockouts 1 | . . . 1 . . . Manual . | . . . . . . . Terminals 22 | . 3 . 16 . . 3 Fabricators . | . . . . . . . Repair Stations . | . . . . . . . Recycling Units . | . . . . . . . Scanalyzers 3 | . . . 3 . . . Garrison Access 1 | . . . . 1 . . Terminal Hacks 9 | . 2 . 7 . . . Record 3 | . . . 3 . . . Emergency Access Points 2 | . 1 . 1 . . . Locate Traps 1 | . 1 . . . . . Investigation Status 1 | . . . 1 . . . Recall Investigation 1 | . . . 1 . . . Zone Layout 1 | . . . 1 . . . Fabricator Hacks . | . . . . . . . Repair Station Hacks . | . . . . . . . Recycling Unit Hacks . | . . . . . . . Scanalyzer 3 | . . . 3 . . . Insert Component 1 | . . . 1 . . . Analyze 2 | . . . 2 . . . Garrison Access Hacks 1 | . . . . 1 . . Unlock Access 1 | . . . . 1 . . Unauthorized Hacks . | . . . . . . . Terminals . | . . . . . . . Fabricators . | . . . . . . . Repair Stations . | . . . . . . . Recycling Units . | . . . . . . . Scanalyzers . | . . . . . . . Garrison Access . | . . . . . . . Data Cores Recovered . | . . . . . . . Used . | . . . . . . . Hacking Detections 6 | . . . 5 . . 1 Full Trace Events 4 | . . . 3 . . 1 Feedback Events . | . . . . . . . Feedback Blocked . | . . . . . . . Robot Schematics Acquired . | . . . . . . . Robots Built . | . . . . . . . Authchips . | . . . . . . . Time . | . . . . . . . Total Robot Build Rating . | . . . . . . . Part Schematics Acquired 1 | . . . 1 . . . Parts Built . | . . . . . . . Authchips . | . . . . . . . Time . | . . . . . . . Total Part Build Rating . | . . . . . . . Part Studies Acquired . | . . . . . . . Parts Repaired . | . . . . . . . Time . | . . . . . . . Parts Recycled . | . . . . . . . Recycled Matter . | . . . . . . . Retrieved Matter . | . . . . . . . Retrieved Components . | . . . . . . . Parts Scanalyzed 1 | . . . 1 . . . Part Schematics Acquired 1 | . . . 1 . . . Parts Damaged . | . . . . . . . Bothacking | -11 -10 -10 -9 -8 -8 -8 ------------ Run | Yrd Mat Min Mat Mat Gar Mat Used RIF Installer 1 | . . . . . 1 . Robots Hacked . | . . . . . . . Non-combat . | . . . . . . . Combat . | . . . . . . . Robot Hacks Applied . | . . . . . . . Relay Couplers Released . | . . . . . . . Fabnet Peak Effective % . | . . . . . . . Robots Rewired . | . . . . . . . Allies Hacked . | . . . . . . . Hacks Repelled . | . . . . . . . Allies | -11 -10 -10 -9 -8 -8 -8 -------- Run | Yrd Mat Min Mat Mat Gar Mat Total Allies 3 | . . 3 . . . . Largest Group 3 | . . 3 3 . . . Highest-Rated Group 40 | . . 40 40 . . . Highest-Rated Ally 16 | . . 16 16 . . . Total Orders . | . . . . . . . Ally Attacks 25 | . . . 25 . . . Total Damage 217 | . . . 217 . . . Kills 4 | . . . 4 . . . Allies Corrupted . | . . . . . . . Allies Melted . | . . . . . . . Intel | -11 -10 -10 -9 -8 -8 -8 ------- Run | Yrd Mat Min Mat Mat Gar Mat Active Infowar (turns) 576 | . . . 170 26 296 84 Optics 576 | . . . 170 26 296 84 Robot Analysis Total . | . . . . . . . Derelict Logs Recovered 2 | . . 2 . . . . Drone Launches . | . . . . . . . Drone Recoveries . | . . . . . . . Exploration | -11 -10 -10 -9 -8 -8 -8 ------------- Run | Yrd Mat Min Mat Mat Gar Mat Turns Passed 3111 | 67 506 477 1476 26 296 263 Spaces Moved 1701 | 47 330 373 631 21 182 117 Core 3 | 3 . . . . . . Treads . | . . . . . . . Legs 1698 | 44 330 373 631 21 182 117 Wheels . | . . . . . . . Hover . | . . . . . . . Flight . | . . . . . . . Fastest Speed 50 | 50 120 120 120 120 120 120 Average Speed 122 | 116 120 120 128 120 120 120 Slowest Speed 260 | 120 120 120 260 120 120 120 Overloaded Moves . | . . . . . . . Propulsion Burnouts . | . . . . . . . Robots Hopped . | . . . . . . . Potential Cave-ins . | . . . . . . . Cave-ins Triggered . | . . . . . . . Exploration Rate (%) 35 | 5 62 80 52 3 31 15 Regions Visited 6 Branch Regions 1 Pre-discovered Areas 1 | . . 1 . . . . Known Exits Taken 2 | . . . 1 1 . . Unknown Exits Taken 3 | 1 1 1 . . . . Scrap Searched 1 | . . 1 . . . . Spaces Dug . | . . . . . . . Terrain Destroyed 210 | . 18 . 190 . 2 . Melee . | . . . . . . . Projectile . | . . . . . . . AOE 210 | . 18 . 190 . 2 . Terrain Rammed . | . . . . . . . Walls Destroyed . | . . . . . . . Machines Disabled . | . . . . . . . Actions | -11 -10 -10 -9 -8 -8 -8 --------- Run | Yrd Mat Min Mat Mat Gar Mat Total 2504 | 56 388 391 1217 22 213 217 Wait 596 | 1 14 4 498 . . 79 Move 1694 | 46 329 372 630 20 180 117 Hop . | . . . . . . . Pick Up 20 | 3 7 3 7 . . . Fast Attach 25 | 5 2 1 10 . 2 5 Attach 16 | 1 1 2 9 2 1 . Detach 3 | . 1 . 1 . 1 . Swap 6 | . 4 . 2 . . . Drop 24 | . 4 2 12 . 2 4 Fire 110 | . 26 7 43 . 22 12 Melee . | . . . . . . . Ram . | . . . . . . . Kick 5 | . . . 5 . . . Crush . | . . . . . . . Escape Stasis 5 | . . . . . 5 . Rewire . | . . . . . . . Trap . | . . . . . . . Miscellaneous . | . . . . . . . Route ------- -11/Scrapyard -10/Materials (discovered 2 exits: *Mat / [*Min]) -10/Mines -9/Materials (discovered 2 exits: *Mat / [*Min]) -8/Materials -8/Garrison -8/Materials History --------- Turn | Location | Event 10 | -11/Scrapyard | Discovered new exit (range 15) 68 | -11/Scrapyard | Entered Materials 310 | -10/Materials | Build established: Mutant 393 | -10/Materials | Discovered new exit (range 4) 519 | -10/Materials | Discovered new exit (range 7) 574 | -10/Materials | Entered Mines 595 | -10/Mines | Met a Derelict bent on vengeance 666 | -10/Mines | Received a Rocket Launcher from a helpful Derelict 673 | -10/Mines | Assembled infested the area 678 | -10/Mines | Assisted by a Guerilla fighting off Assembled 768 | -10/Mines | A weapon hastily lodged in a ceiling crevice suddenly fell to the ground 864 | -10/Mines | Assisted by bots powering up and referring to "LRC-V3" 881 | -10/Mines | Learned Materials emergency access door positions 929 | -10/Mines | Discovered new exit (range 8) 930 | -10/Mines | Found a damaged Exp. Sensor Array with a note attached 1051 | -10/Mines | Entered Materials 1051 | -9/Materials | Accompanied by 3 allies 1051 | -9/Materials | Evolved 2 slots: Utility x1, Weapon x1 1367 | -9/Materials | Build established: Gunner 1750 | -9/Materials | Central database locked down 1890 | -9/Materials | Lost 3 allies 1993 | -9/Materials | Destroyed 7 combat bots 1997 | -9/Materials | Lost 3 parts (3w) 2048 | -9/Materials | Discovered new exit (range 15) 2188 | -9/Materials | Discovered new exit (range 8) 2251 | -9/Materials | First assault squad dispatched 2525 | -9/Materials | Identified exit to Materials 2527 | -9/Materials | Entered another Materials area 2527 | -8/Materials | Evolved 2 slots: Propulsion x2 2547 | -8/Materials | Identified exit to Garrison 2553 | -8/Materials | Entered Garrison 2582 | -8/Garrison | Installed Relay Interface Framework 2681 | -8/Garrison | Triggered checkpoint 2751 | -8/Garrison | Triggered checkpoint 2788 | -8/Garrison | Build established: Scavenger-Skirmisher 2835 | -8/Garrison | Discovered new exit (range 10) 2849 | -8/Garrison | Entered Materials 3036 | -8/Materials | Core integrity fell below 50% 3046 | -8/Materials | Core integrity fell below 20% 3112 | -8/Materials | Destroyed by G-47 Trooper with Particle Gun Last Messages --------------- 03059_ K-01 Serf collects debris. 03060_ R-06 Scavenger collects Imp. Aluminum Leg. 03060_ Aluminum Leg destroyed. 03061_ Overheating: Matter decay (-52). 03064_ R-06 Scavenger collects Particle Gun. 03064_ K-01 Serf collects debris. 03069_ R-06 Scavenger collects Melee Analysis Suite. 03070_ Hrd. Medium Armor Plating destroyed. 03072_ R-06 Scavenger collects Imp. Aluminum Leg. 03072_ K-01 Serf collects debris. 03080_ Particle Cannon destroyed. 03082_ K-01 Serf collects debris. 03082_ Aluminum Leg destroyed. 03082_ Critical hit (Burn: +37). 03086_ K-01 Serf collects debris. 03104_ Particle Gun destroyed. 03106_ K-01 Serf collects debris. Map ----- +----------------------------------------------------+ | | | | | | | | | | | | | | | | | | | | | | | | | ??????????????#####################??????????????? | | ########??????# # #??????????????? | | # #??????# # #??????????????? | | # """ #??????# # #??????????????? | | # """ #????### # #??????????????? | | # """ ######T######+#####+##+#####??????????????? | | # + #??????????????????? | | # = #+######## #?????????#####+???? | | ######## # ########## ??? | | #???# """ + ??? | | "" ##### """ #### #####+###### ??? | | "" # # """ #??# #?# # // [!! #??? | | "" # # #??# #?# "" # // [! #??? | | # # """ #??# #?# @ "" # / [! #??? | | + + """ #??# #?#!kg"" + #??? | | # # """ #??# #?#% # #??? | | "" # # #??# #?# " # #??? | | #### ##########??# #?# """ # [ #??? | | ??# #??????????# #?# %""" # #??? | | ? #??????????? ??# # #??? | | " #??????????? ??#####r#### #??? | | #??????????? ??????? ?? #??? | | ### #??????????? ??????? ?? #??? | | ??###+###??????????????????? ?? ! ???? | | ???????????????????????????????? ???? | | ???????????????????????????????? ^ ????? | | ???????????????????????????????? "" ????? | | ???????????????????????????????? " "???????? | | ???????????????????????????????? "?????????? | | ???????????????????????????????? ???????????? | | ???????????????????????????????? ?????????????? | | ?????????????????????????????????????????????????? | | ?????????????????????????????????????????????????? | | ?????????????????????????????????????????????????? | | ?????????????????????????????????????????????????? | | ?????????????????????????????????????????????????? | | ?????????????????????????????????????????????????? | | ?????????????????????????????????????????????????? | +----------------------------------------------------+ Best States ------------- Heat Dissipation 38 Energy Generation 14 Energy Capacity 480 Matter Stores 480 Matter Capacity 500 Sight Range 18 Terrain Scan Density 10 Additional Mass Support 6 Armor Coverage 225 Evasion (%) 55 Item Schematics ----------------- Visual Processing Unit | -9/Materials | Scanalyzed Robot Schematics ------------------ None Fabricated ------------ Nothing Repaired ---------- Nothing Studied --------- None Alien Tech Used ----------------- None Achievements -------------- Bumper Bots Join The Dark Side Resistances Are Futile Well Done Challenges ------------ None Game ------ Seed NetworkedDataMantle Manual? 0 Play Time 00:37:21 Cumulative 8.8 hours Start 2026.01.02 @ 19:22:55 End 2026.01.02 @ 22:02:41 Sessions 3 Manual Loads 0 Difficulty Rogue Special Mode None Game No. 22 Rogue 22 Adventurer 0 Explorer 0 Win Type - Total 0 Types 0/0/0/0/0/0/0/0/0/0 Lore% 1 Gallery% 10 Achievement% 11 Wizard Run 0 Options --------- Layout 1 ASCII 0 Keyboard 0 Movement Arrows Keybinds 0 Fullscreen 1 Font 16/SmallcapsGlow Map View 50x40 Zoom Use 0% Tactical HUD 1 Map Filters NONE Filters NONE Steam SD RUN: 55974219-5bd3-4afc-8ad2-c1a63fc25248